fUST/lending_fUST_20260506
["ID","MTS","AMOUNT","RATE_DAILY","PERIOD"]
[421644090,1778010643000,-160.0,0.00012083,2]
[421644140,1778010646000,-500.0,0.00012328,2]
[421644152,1778010646000,-524.44,0.00012328,2]
[421644142,1778010646000,-500.0,0.00012328,2]
[421644154,1778010646000,-500.0,0.00012328,2]
[421644146,1778010646000,-500.0,0.00012328,2]
[421644150,1778010646000,-500.0,0.00012328,2]
[421644133,1778010646000,-500.0,0.00012328,2]
[421644156,1778010646000,-1340.06,0.00012328,2]
[421644144,1778010646000,-1436.24,0.00012328,2]
[421644155,1778010646000,-606.48,0.00012328,2]
[421644157,1778010646000,-306.54956942,0.00012328,2]
[421644160,1778010646000,-500.0,0.00012328,2]
[421644161,1778010646000,-500.0,0.00012328,2]
[421644148,1778010646000,-500.0,0.00012328,2]
[421644138,1778010646000,-576.37305081,0.00012328,2]
[421644127,1778010646000,-500.0,0.00012328,2]
[421644131,1778010646000,-500.0,0.00012328,2]
[421644117,1778010646000,-151.0,0.000123,2]
[421644162,1778010646000,-500.0,0.00012328,2]
[421644121,1778010646000,-3156.4268,0.00012328,2]
[421644115,1778010646000,-151.0,0.000122,2]
[421644114,1778010646000,-151.0,0.000122,2]
[421644118,1778010646000,-151.0,0.000123,2]
[421644129,1778010646000,-530.56,0.00012328,2]
[421644126,1778010646000,-500.0,0.00012328,2]
[421644120,1778010646000,-500.0,0.00012328,2]
[421644116,1778010646000,-1559.0,0.00012294,2]
[421644112,1778010646000,-2441.53301305,0.00012166,2]
[421644123,1778010646000,-518.12,0.00012328,2]
[421644113,1778010646000,-2762.6921032,0.00012166,2]
[421644136,1778010646000,-500.0,0.00012328,2]
[421644159,1778010646000,-500.0,0.00012328,2]
[421644185,1778010646000,-500.0,0.00012328,2]
[421644168,1778010646000,-500.0,0.00012328,2]
[421644163,1778010646000,-500.0,0.00012328,2]
[421644195,1778010646000,-1357.46,0.00012328,2]
[421644192,1778010646000,-284.44538848,0.00012328,2]
[421644186,1778010646000,-944.32,0.00012328,2]
[421644191,1778010646000,-500.0,0.00012328,2]
[421644187,1778010646000,-500.0,0.00012328,2]
[421644188,1778010646000,-500.0,0.00012328,2]
[421644194,1778010646000,-500.0,0.00012328,2]
[421644193,1778010646000,-519.62,0.00012328,2]
[421644190,1778010646000,-500.0,0.00012328,2]
[421644184,1778010646000,-645.13,0.00012328,2]
[421644182,1778010646000,-571.56,0.00012328,2]
[421644183,1778010646000,-500.0,0.00012328,2]
[421644179,1778010646000,-500.0,0.00012328,2]
[421644178,1778010646000,-960.61,0.00012328,2]
[421644189,1778010646000,-675.52,0.00012328,2]
[421644177,1778010646000,-868.4141,0.00012328,2]
[421644175,1778010646000,-500.0,0.00012328,2]
[421644165,1778010646000,-500.0,0.00012328,2]
[421644158,1778010646000,-779.87,0.00012328,2]
[421644166,1778010646000,-1516.76,0.00012328,2]
[421644170,1778010646000,-708.75,0.00012328,2]
[421644181,1778010646000,-500.0,0.00012328,2]
[421644167,1778010646000,-500.0,0.00012328,2]
[421644169,1778010646000,-500.0,0.00012328,2]
[421644172,1778010646000,-1942.97,0.00012328,2]
[421644171,1778010646000,-538.78,0.00012328,2]
[421644173,1778010646000,-500.0,0.00012328,2]
[421644164,1778010646000,-624.45,0.00012328,2]
[421644174,1778010646000,-500.0,0.00012328,2]
[421644176,1778010646000,-500.0,0.00012328,2]
[421644180,1778010646000,-376.13937958,0.00012328,2]
[421644236,1778010647000,-151.0,0.00012328,2]
[421644224,1778010647000,-908.99,0.00012328,2]
[421644229,1778010647000,-500.0,0.00012328,2]
[421644228,1778010647000,-1654.44,0.00012328,2]
[421644235,1778010647000,-151.0,0.00012328,2]
[421644232,1778010647000,-1053.83,0.00012328,2]
[421644231,1778010647000,-534.99,0.00012328,2]
[421644233,1778010647000,-500.0,0.00012328,2]
[421644234,1778010647000,-151.0,0.00012328,2]
[421644238,1778010647000,-500.0,0.00012328,2]
[421644227,1778010647000,-2877.82,0.00012328,2]
[421644230,1778010647000,-500.0,0.00012328,2]
[421644244,1778010647000,-1261.89,0.00012328,2]
[421644237,1778010647000,-500.0,0.00012328,2]
[421644240,1778010647000,-500.0,0.00012328,2]
[421644242,1778010647000,-1257.36,0.00012328,2]
[421644241,1778010647000,-500.0,0.00012328,2]
[421644247,1778010647000,-639.17,0.00012328,2]
[421644246,1778010647000,-822.06,0.00012328,2]
[421644243,1778010647000,-585.21,0.00012328,2]
[421644245,1778010647000,-500.0,0.00012328,2]
[421644249,1778010647000,-500.0,0.00012328,2]
[421644259,1778010647000,-500.0,0.00012328,2]
[421644248,1778010647000,-500.0,0.00012328,2]
[421644226,1778010647000,-610.41,0.00012328,2]
[421644239,1778010647000,-3142.35,0.00012328,2]
[421644225,1778010647000,-500.0,0.00012328,2]
[421644202,1778010647000,-2898.58,0.00012328,2]
[421644222,1778010647000,-500.0,0.00012328,2]
[421644250,1778010647000,-677.74,0.00012328,2]
[421644196,1778010647000,-500.0,0.00012328,2]
[421644198,1778010647000,-500.0,0.00012328,2]
[421644197,1778010647000,-2647.16,0.00012328,2]
[421644207,1778010647000,-500.0,0.00012328,2]
[421644206,1778010647000,-1023.22,0.00012328,2]
[421644199,1778010647000,-500.0,0.00012328,2]
[421644200,1778010647000,-708.03,0.00012328,2]
[421644203,1778010647000,-809.21,0.00012328,2]
[421644204,1778010647000,-754.46,0.00012328,2]
[421644205,1778010647000,-500.0,0.00012328,2]
[421644201,1778010647000,-500.0,0.00012328,2]
[421644211,1778010647000,-1260.9,0.00012328,2]
[421644208,1778010647000,-500.0,0.00012328,2]
[421644209,1778010647000,-500.0,0.00012328,2]
[421644210,1778010647000,-500.0,0.00012328,2]
[421644214,1778010647000,-1446.39,0.00012328,2]
[421644215,1778010647000,-500.0,0.00012328,2]
[421644216,1778010647000,-500.0,0.00012328,2]
[421644213,1778010647000,-849.44,0.00012328,2]
[421644219,1778010647000,-614.50789675,0.00012328,2]
[421644217,1778010647000,-747.96,0.00012328,2]
[421644212,1778010647000,-500.0,0.00012328,2]
[421644221,1778010647000,-1183.46,0.00012328,2]
[421644218,1778010647000,-508.42,0.00012328,2]
[421644223,1778010647000,-539.58,0.00012328,2]
[421644255,1778010647000,-500.0,0.00012328,2]
[421644296,1778010647000,-2119.96,0.00012328,2]
[421644252,1778010647000,-500.0,0.00012328,2]
[421644280,1778010647000,-500.0,0.00012328,2]
[421644285,1778010647000,-912.59,0.00012328,2]
[421644294,1778010647000,-1722.94,0.00012328,2]
[421644286,1778010647000,-373.28502588,0.00012328,2]
[421644297,1778010647000,-3075.04,0.00012328,2]
[421644295,1778010647000,-585.75,0.00012328,2]
[421644288,1778010647000,-500.0,0.00012328,2]
[421644305,1778010647000,-6950.2,0.00012328,2]
[421644287,1778010647000,-647.18,0.00012328,2]
[421644289,1778010647000,-500.0,0.00012328,2]
[421644291,1778010647000,-527.54,0.00012328,2]
[421644293,1778010647000,-858.53,0.00012328,2]
[421644290,1778010647000,-2633.7,0.00012328,2]
[421644292,1778010647000,-500.0,0.00012328,2]
[421644299,1778010647000,-2636.14,0.00012328,2]
[421644309,1778010647000,-2756.61,0.00012328,2]
[421644298,1778010647000,-1955.16,0.00012328,2]
[421644300,1778010647000,-500.0,0.00012328,2]
[421644301,1778010647000,-3369.51,0.00012328,2]
[421644307,1778010647000,-1097.53,0.00012328,2]
[421644308,1778010647000,-500.0,0.00012328,2]
[421644303,1778010647000,-1399.85,0.00012328,2]
[421644302,1778010647000,-7736.15,0.00012328,2]
[421644306,1778010647000,-5377.38,0.00012328,2]
[421644251,1778010647000,-500.0,0.00012328,2]
[421644277,1778010647000,-500.0,0.00012328,2]
[421644275,1778010647000,-500.0,0.00012328,2]
[421644304,1778010647000,-574.83,0.00012328,2]
[421644278,1778010647000,-528.49,0.00012328,2]
[421644256,1778010647000,-500.0,0.00012328,2]
[421644253,1778010647000,-2570.24,0.00012328,2]
[421644258,1778010647000,-5141.34,0.00012328,2]
[421644254,1778010647000,-500.0,0.00012328,2]
[421644257,1778010647000,-500.0,0.00012328,2]
[421644260,1778010647000,-500.0,0.00012328,2]
[421644262,1778010647000,-2454.35,0.00012328,2]
[421644269,1778010647000,-2529.75,0.00012328,2]
[421644264,1778010647000,-500.0,0.00012328,2]
[421644263,1778010647000,-770.11,0.00012328,2]
[421644271,1778010647000,-7763.67,0.00012328,2]
[421644270,1778010647000,-523.59,0.00012328,2]
[421644261,1778010647000,-1901.82,0.00012328,2]
[421644265,1778010647000,-3722.94,0.00012328,2]
[421644266,1778010647000,-500.0,0.00012328,2]
[421644273,1778010647000,-700.98,0.00012328,2]
[421644276,1778010647000,-1439.3,0.00012328,2]
[421644274,1778010647000,-500.0,0.00012328,2]
[421644272,1778010647000,-841.29,0.00012328,2]
[421644284,1778010647000,-500.0,0.00012328,2]
[421644279,1778010647000,-500.0,0.00012328,2]
[421644281,1778010647000,-500.0,0.00012328,2]
[421644283,1778010647000,-3325.84,0.00012328,2]
[421644267,1778010647000,-8989.45,0.00012328,2]
[421644268,1778010647000,-663.95,0.00012328,2]
[421644282,1778010647000,-2545.99,0.00012328,2]
[421644317,1778010648000,-1780.15,0.00012328,2]
[421644316,1778010648000,-564.59,0.00012328,2]
[421644319,1778010648000,-1922.43,0.00012328,2]
[421644318,1778010648000,-500.0,0.00012328,2]
[421644321,1778010648000,-2049.05,0.00012328,2]
[421644312,1778010648000,-500.0,0.00012328,2]
[421644315,1778010648000,-500.0,0.00012328,2]
[421644322,1778010648000,-597.3,0.00012328,2]
[421644313,1778010648000,-500.0,0.00012328,2]
[421644311,1778010648000,-2379.18,0.00012328,2]
[421644314,1778010648000,-43267.06,0.00012328,2]
[421644310,1778010648000,-519.41,0.00012328,2]
[421644320,1778010648000,-500.0,0.00012328,2]
[421644323,1778010648000,-8742.7,0.00012328,2]
[421644334,1778010648000,-346.68041128,0.00012328,2]
[421644333,1778010648000,-151.0,0.00012328,2]
[421644324,1778010648000,-500.0,0.00012328,2]
[421644327,1778010648000,-3642.37,0.00012328,2]
[421644331,1778010648000,-851.67,0.00012328,2]
[421644325,1778010648000,-500.0,0.00012328,2]
[421644328,1778010648000,-388.64809557,0.00012328,2]
[421644326,1778010648000,-4785.1,0.00012328,2]
[421644329,1778010648000,-500.0,0.00012328,2]
[421644330,1778010648000,-729.14,0.00012328,2]
[421644335,1778010648000,-774.79113638,0.00012328,2]
[421644332,1778010648000,-151.0,0.00012328,2]
[421644365,1778011181000,21439.34564587,0.000135,120]
[421644447,1778011832000,-2750.0,0.00011449,2]
[421644446,1778011832000,-2013.05918132,0.00011449,2]
[421644450,1778011832000,-1076.45481776,0.00011929,2]
[421644448,1778011832000,-363.35059972,0.00011565,2]
[421644449,1778011832000,-1011.30254785,0.00011929,2]
[421644472,1778011838000,-287.9851576,0.00012122,2]
[421644476,1778011838000,-500.0,0.00012126,2]
[421644473,1778011838000,-500.0,0.00012126,2]
[421644471,1778011838000,-202.8213214,0.000121,2]
[421644469,1778011838000,-209.92289081,0.000121,2]
[421644465,1778011838000,-9705.29981231,0.000121,2]
[421644468,1778011838000,-170.06717307,0.000121,2]
[421644467,1778011838000,-160.81980912,0.000121,2]
[421644466,1778011838000,-10766.99979145,0.000121,2]
[421644458,1778011838000,-7887.19775699,0.00012029,2]
[421644474,1778011838000,-500.0,0.00012126,2]
[421644463,1778011838000,-160.0,0.00012075,2]
[421644464,1778011838000,-161.56332863,0.00012075,2]
[421644462,1778011838000,-160.0,0.00012075,2]
[421644459,1778011838000,-756.40207623,0.00012029,2]
[421644461,1778011838000,-160.0,0.00012075,2]
[421644460,1778011838000,-244.761,0.00012075,2]
[421644457,1778011838000,-2409.66227839,0.00011929,2]
[421644479,1778011838000,-500.0,0.00012126,2]
[421644475,1778011838000,-500.0,0.00012126,2]
[421644480,1778011838000,-168.9517238,0.00012126,2]
[421644470,1778011838000,-214.2669076,0.000121,2]
[421644485,1778011838000,-292.70063837,0.00012126,2]
[421644497,1778011838000,-500.0,0.00012126,2]
[421644496,1778011838000,-500.0,0.00012126,2]
[421644493,1778011838000,-187.18000715,0.00012126,2]
[421644499,1778011838000,-14563.52506995,0.00012127,2]
[421644494,1778011838000,-456.68306186,0.00012126,2]
[421644495,1778011838000,-500.0,0.00012126,2]
[421644492,1778011838000,-500.0,0.00012126,2]
[421644491,1778011838000,-446.7469171,0.00012126,2]
[421644489,1778011838000,-500.0,0.00012126,2]
[421644486,1778011838000,-500.0,0.00012126,2]
[421644500,1778011838000,-241456.17941956,0.00012127,2]
[421644482,1778011838000,-500.0,0.00012126,2]
[421644484,1778011838000,-500.0,0.00012126,2]
[421644483,1778011838000,-500.0,0.00012126,2]
[421644487,1778011838000,-500.0,0.00012126,2]
[421644481,1778011838000,-500.0,0.00012126,2]
[421644498,1778011838000,-348.55834155,0.00012126,2]
[421644477,1778011838000,-500.0,0.00012126,2]
[421644478,1778011838000,-500.0,0.00012126,2]
[421644488,1778011838000,-614.87666005,0.00012126,2]
[421644490,1778011838000,-500.0,0.00012126,2]
[421644508,1778011840000,-660.98733732,0.00012127,2]
[421644513,1778011840000,-2433.1418704,0.00012127,2]
[421644510,1778011840000,-8062.67349115,0.00012127,2]
[421644571,1778011846000,-29057.86598955,0.00012127,2]
[421644569,1778011846000,-25936.97707419,0.00012127,2]
[421644570,1778011846000,-765.63111809,0.00012127,2]
[421644630,1778013035000,-3492.01519989,0.0001,2]
[421644680,1778013053000,-7472.21269021,0.00011126,2]
[421644682,1778013053000,-151.98279117,0.00011126,2]
[421644683,1778013053000,-607.93116466,0.00011126,2]
[421644691,1778013053000,-151.6944714,0.00011329,2]
[421644681,1778013053000,-10160.34120552,0.00011126,2]
[421644677,1778013053000,-1868.05317255,0.00011126,2]
[421644675,1778013053000,-207.56146362,0.00011126,2]
[421644676,1778013053000,-830.24585447,0.00011126,2]
[421644678,1778013053000,-3320.98341787,0.00011126,2]
[421644674,1778013053000,-2345.7211218,0.00010959,2]
[421644673,1778013053000,-386.93591435,0.000102,2]
[421644692,1778013053000,-248.03011951,0.00011646,2]
[421644679,1778013053000,-5189.03659043,0.00011126,2]
[421644685,1778013053000,-2431.72465866,0.00011126,2]
[421644684,1778013053000,-1367.84512049,0.00011126,2]
[421644700,1778013053000,-9603.41635331,0.00011926,2]
[421644702,1778013053000,-187.8527755,0.00012026,2]
[421644701,1778013053000,-765.63111809,0.00011926,2]
[421644696,1778013053000,-500.0,0.00011752,2]
[421644703,1778013053000,-500.0,0.00012026,2]
[421644699,1778013053000,-250.38489549,0.00011907,2]
[421644698,1778013053000,-196.06023905,0.00011865,2]
[421644697,1778013053000,-263.23622474,0.00011752,2]
[421644693,1778013053000,-500.0,0.00011752,2]
[421644694,1778013053000,-500.0,0.00011752,2]
[421644690,1778013053000,-456.2679462,0.00011329,2]
[421644689,1778013053000,-9717.17173599,0.00011126,2]
[421644688,1778013053000,-7447.15676713,0.00011126,2]
[421644686,1778013053000,-3799.56977915,0.00011126,2]
[421644695,1778013053000,-500.0,0.00011752,2]
[421644687,1778013053000,-5471.38048198,0.00011126,2]
[421644739,1778013054000,-500.0,0.00012327,2]
[421644744,1778013054000,-500.0,0.00012328,2]
[421644754,1778013054000,-500.0,0.00012328,2]
[421644745,1778013054000,-500.0,0.00012328,2]
[421644738,1778013054000,-500.0,0.00012327,2]
[421644733,1778013054000,-176.5291099,0.00012327,2]
[421644736,1778013054000,-500.0,0.00012327,2]
[421644740,1778013054000,-500.0,0.00012327,2]
[421644735,1778013054000,-500.0,0.00012327,2]
[421644737,1778013054000,-500.0,0.00012327,2]
[421644731,1778013054000,-417.30798055,0.00012327,2]
[421644753,1778013054000,-500.0,0.00012328,2]
[421644741,1778013054000,-300.0,0.00012327,2]
[421644755,1778013054000,-500.0,0.00012328,2]
[421644752,1778013054000,-758.47,0.00012328,2]
[421644747,1778013054000,-1293.48,0.00012328,2]
[421644748,1778013054000,-500.0,0.00012328,2]
[421644749,1778013054000,-500.0,0.00012328,2]
[421644751,1778013054000,-500.0,0.00012328,2]
[421644750,1778013054000,-500.0,0.00012328,2]
[421644762,1778013054000,-500.0,0.00012328,2]
[421644756,1778013054000,-500.0,0.00012328,2]
[421644757,1778013054000,-500.0,0.00012328,2]
[421644767,1778013054000,-500.0,0.00012328,2]
[421644761,1778013054000,-500.0,0.00012328,2]
[421644759,1778013054000,-290.86808743,0.00012328,2]
[421644758,1778013054000,-500.0,0.00012328,2]
[421644746,1778013054000,-500.0,0.00012328,2]
[421644742,1778013054000,-2935.1942019,0.00012328,2]
[421644704,1778013054000,-362.443,0.00012026,2]
[421644743,1778013054000,-500.0,0.00012328,2]
[421644760,1778013054000,-500.0,0.00012328,2]
[421644705,1778013054000,-160.0,0.00012109,2]
[421644716,1778013054000,-456.58437893,0.000122,2]
[421644706,1778013054000,-161.56332863,0.00012112,2]
[421644717,1778013054000,-1478.26365169,0.00012228,2]
[421644713,1778013054000,-325.6399711,0.00012151,2]
[421644707,1778013054000,-160.0,0.00012113,2]
[421644710,1778013054000,-500.0,0.00012127,2]
[421644709,1778013054000,-3080.2788156,0.00012122,2]
[421644712,1778013054000,-2288.47482898,0.00012146,21]
[421644711,1778013054000,-196.06023905,0.00012139,2]
[421644714,1778013054000,-1478.26365169,0.00012153,2]
[421644715,1778013054000,-225.30548169,0.00012196,21]
[421644708,1778013054000,-773.8759994,0.00012122,2]
[421644718,1778013054000,-1559.0,0.0001223,2]
[421644727,1778013054000,-500.0,0.00012327,2]
[421644719,1778013054000,-500.0,0.000123,2]
[421644723,1778013054000,-238.37284903,0.00012327,2]
[421644730,1778013054000,-500.0,0.00012327,2]
[421644725,1778013054000,-500.0,0.00012327,2]
[421644729,1778013054000,-500.0,0.00012327,2]
[421644720,1778013054000,-155.0,0.00012327,2]
[421644721,1778013054000,-155.0,0.00012327,2]
[421644726,1778013054000,-500.0,0.00012327,2]
[421644722,1778013054000,-500.0,0.00012327,2]
[421644728,1778013054000,-500.0,0.00012327,2]
[421644724,1778013054000,-500.0,0.00012327,2]
[421644732,1778013054000,-500.0,0.00012327,2]
[421644763,1778013054000,-500.0,0.00012328,2]
[421644819,1778013054000,-500.0,0.00012328,2]
[421644764,1778013054000,-500.0,0.00012328,2]
[421644800,1778013054000,-500.0,0.00012328,2]
[421644794,1778013054000,-500.0,0.00012328,2]
[421644797,1778013054000,-734.14,0.00012328,2]
[421644801,1778013054000,-596.11,0.00012328,2]
[421644799,1778013054000,-500.0,0.00012328,2]
[421644804,1778013054000,-500.0,0.00012328,2]
[421644807,1778013054000,-582.48,0.00012328,2]
[421644805,1778013054000,-1575.26,0.00012328,2]
[421644806,1778013054000,-500.0,0.00012328,2]
[421644808,1778013054000,-500.0,0.00012328,2]
[421644812,1778013054000,-500.0,0.00012328,2]
[421644810,1778013054000,-500.0,0.00012328,2]
[421644816,1778013054000,-500.0,0.00012328,2]
[421644815,1778013054000,-500.0,0.00012328,2]
[421644811,1778013054000,-326.96717583,0.00012328,2]
[421644814,1778013054000,-522.57,0.00012328,2]
[421644813,1778013054000,-500.0,0.00012328,2]
[421644817,1778013054000,-500.0,0.00012328,2]
[421644826,1778013054000,-500.0,0.00012328,2]
[421644820,1778013054000,-500.0,0.00012328,2]
[421644821,1778013054000,-500.0,0.00012328,2]
[421644818,1778013054000,-500.0,0.00012328,2]
[421644825,1778013054000,-500.0,0.00012328,2]
[421644822,1778013054000,-500.0,0.00012328,2]
[421644824,1778013054000,-502.23,0.00012328,2]
[421644823,1778013054000,-500.0,0.00012328,2]
[421644765,1778013054000,-500.0,0.00012328,2]
[421644796,1778013054000,-500.0,0.00012328,2]
[421644795,1778013054000,-500.0,0.00012328,2]
[421644809,1778013054000,-500.0,0.00012328,2]
[421644793,1778013054000,-500.0,0.00012328,2]
[421644766,1778013054000,-500.0,0.00012328,2]
[421644798,1778013054000,-500.0,0.00012328,2]
[421644768,1778013054000,-500.0,0.00012328,2]
[421644770,1778013054000,-500.0,0.00012328,2]
[421644769,1778013054000,-500.0,0.00012328,2]
[421644780,1778013054000,-500.0,0.00012328,2]
[421644779,1778013054000,-500.0,0.00012328,2]
[421644776,1778013054000,-500.0,0.00012328,2]
[421644774,1778013054000,-500.0,0.00012328,2]
[421644772,1778013054000,-500.0,0.00012328,2]
[421644777,1778013054000,-500.0,0.00012328,2]
[421644771,1778013054000,-500.0,0.00012328,2]
[421644778,1778013054000,-500.0,0.00012328,2]
[421644775,1778013054000,-897.91,0.00012328,2]
[421644773,1778013054000,-500.0,0.00012328,2]
[421644803,1778013054000,-500.0,0.00012328,2]
[421644791,1778013054000,-500.0,0.00012328,2]
[421644786,1778013054000,-500.0,0.00012328,2]
[421644802,1778013054000,-500.0,0.00012328,2]
[421644792,1778013054000,-500.0,0.00012328,2]
[421644784,1778013054000,-500.0,0.00012328,2]
[421644787,1778013054000,-500.0,0.00012328,2]
[421644788,1778013054000,-588.8,0.00012328,2]
[421644782,1778013054000,-2874.1054,0.00012328,2]
[421644789,1778013054000,-500.0,0.00012328,2]
[421644785,1778013054000,-500.0,0.00012328,2]
[421644790,1778013054000,-500.0,0.00012328,2]
[421644783,1778013054000,-500.0,0.00012328,2]
[421644781,1778013054000,-500.0,0.00012328,2]
[421644870,1778013055000,-500.0,0.00012328,2]
[421644873,1778013055000,-500.0,0.00012328,2]
[421644872,1778013055000,-500.0,0.00012328,2]
[421644867,1778013055000,-605.46,0.00012328,2]
[421644862,1778013055000,-500.0,0.00012328,2]
[421644866,1778013055000,-500.0,0.00012328,2]
[421644863,1778013055000,-549.69,0.00012328,2]
[421644869,1778013055000,-500.0,0.00012328,2]
[421644859,1778013055000,-500.0,0.00012328,2]
[421644864,1778013055000,-1072.89,0.00012328,2]
[421644868,1778013055000,-500.0,0.00012328,2]
[421644882,1778013055000,-500.0,0.00012328,2]
[421644861,1778013055000,-500.0,0.00012328,2]
[421644871,1778013055000,-752.6,0.00012328,2]
[421644886,1778013055000,-678.53,0.00012328,2]
[421644876,1778013055000,-1608.24,0.00012328,2]
[421644875,1778013055000,-3005.81,0.00012328,2]
[421644874,1778013055000,-500.0,0.00012328,2]
[421644878,1778013055000,-500.0,0.00012328,2]
[421644879,1778013055000,-500.0,0.00012328,2]
[421644880,1778013055000,-1561.35,0.00012328,2]
[421644877,1778013055000,-500.0,0.00012328,2]
[421644881,1778013055000,-500.0,0.00012328,2]
[421644885,1778013055000,-832.52,0.00012328,2]
[421644895,1778013055000,-500.0,0.00012328,2]
[421644896,1778013055000,-187.71856418,0.00012328,2]
[421644884,1778013055000,-500.0,0.00012328,2]
[421644865,1778013055000,-500.0,0.00012328,2]
[421644883,1778013055000,-500.0,0.00012328,2]
[421644860,1778013055000,-500.0,0.00012328,2]
[421644828,1778013055000,-1318.91,0.00012328,2]
[421644857,1778013055000,-500.0,0.00012328,2]
[421644827,1778013055000,-500.0,0.00012328,2]
[421644829,1778013055000,-501.63,0.00012328,2]
[421644831,1778013055000,-500.0,0.00012328,2]
[421644842,1778013055000,-355.06605211,0.00012328,2]
[421644830,1778013055000,-500.0,0.00012328,2]
[421644841,1778013055000,-500.0,0.00012328,2]
[421644836,1778013055000,-500.0,0.00012328,2]
[421644839,1778013055000,-500.0,0.00012328,2]
[421644840,1778013055000,-500.0,0.00012328,2]
[421644832,1778013055000,-577.6,0.00012328,2]
[421644833,1778013055000,-2249.89,0.00012328,2]
[421644834,1778013055000,-500.0,0.00012328,2]
[421644887,1778013055000,-500.0,0.00012328,2]
[421644835,1778013055000,-500.0,0.00012328,2]
[421644838,1778013055000,-500.0,0.00012328,2]
[421644844,1778013055000,-500.0,0.00012328,2]
[421644854,1778013055000,-500.0,0.00012328,2]
[421644855,1778013055000,-647.49,0.00012328,2]
[421644856,1778013055000,-500.0,0.00012328,2]
[421644853,1778013055000,-500.0,0.00012328,2]
[421644852,1778013055000,-500.0,0.00012328,2]
[421644846,1778013055000,-500.0,0.00012328,2]
[421644851,1778013055000,-519.75,0.00012328,2]
[421644849,1778013055000,-500.0,0.00012328,2]
[421644850,1778013055000,-395.47931736,0.00012328,2]
[421644845,1778013055000,-500.0,0.00012328,2]
[421644843,1778013055000,-500.0,0.00012328,2]
[421644847,1778013055000,-500.0,0.00012328,2]
[421644848,1778013055000,-504.09,0.00012328,2]
[421644858,1778013055000,-594.31,0.00012328,2]
[421644891,1778013055000,-500.0,0.00012328,2]
[421644837,1778013055000,-500.0,0.00012328,2]
[421644888,1778013055000,-505.37,0.00012328,2]
[421644932,1778013055000,-281.1794163,0.00012328,2]
[421644929,1778013055000,-546.94,0.00012328,2]
[421644926,1778013055000,-1411.33,0.00012328,2]
[421644931,1778013055000,-500.0,0.00012328,2]
[421644927,1778013055000,-500.0,0.00012328,2]
[421644925,1778013055000,-500.0,0.00012328,2]
[421644928,1778013055000,-208.25992459,0.00012328,2]
[421644933,1778013055000,-500.0,0.00012328,2]
[421644930,1778013055000,-423.91669659,0.00012328,2]
[421644939,1778013055000,-500.0,0.00012328,2]
[421644936,1778013055000,-500.0,0.00012328,2]
[421644938,1778013055000,-500.0,0.00012328,2]
[421644946,1778013055000,-500.0,0.00012328,2]
[421644940,1778013055000,-500.0,0.00012328,2]
[421644942,1778013055000,-500.0,0.00012328,2]
[421644947,1778013055000,-1868.38,0.00012328,2]
[421644943,1778013055000,-689.72,0.00012328,2]
[421644941,1778013055000,-828.65,0.00012328,2]
[421644945,1778013055000,-500.0,0.00012328,2]